fUSD/lending_fUSD_20250911
["ID","MTS","AMOUNT","RATE_DAILY","PERIOD"]
[384875265,1757605850977,-400.0,0.00027397,7]
[384875266,1757605850986,-400.0,0.00027397,7]
[384875267,1757605850995,-400.0,0.00027397,7]
[384875268,1757605851004,-3083.9,0.00027397,7]
[384875269,1757605851014,-2690.9,0.00027397,7]
[384875270,1757605851023,-400.0,0.00027397,7]
[384875271,1757605851032,-400.0,0.00027397,7]
[384875272,1757605851042,-400.0,0.00027397,7]
[384875273,1757605851051,-400.0,0.00027397,7]
[384875274,1757605851060,-1594.86,0.00027397,7]
[384875275,1757605851069,-400.0,0.00027397,7]
[384875276,1757605851079,-3300.89,0.00027397,7]
[384875277,1757605851089,-400.0,0.00027397,7]
[384875278,1757605851098,-1081.18,0.00027397,7]
[384875279,1757605851112,-400.0,0.00027397,7]
[384875280,1757605851122,-400.0,0.00027397,7]
[384875281,1757605851132,-2300.74,0.00027397,7]
[384875282,1757605851141,-400.0,0.00027397,7]
[384875283,1757605851151,-896.26,0.00027397,7]
[384875284,1757605851160,-400.0,0.00027397,7]
[384875285,1757605851169,-400.0,0.00027397,7]
[384875286,1757605851178,-400.0,0.00027397,7]
[384875287,1757605851187,-767.52,0.00027397,7]
[384875288,1757605851196,-400.0,0.00027397,7]
[384875289,1757605851206,-400.0,0.00027397,7]
[384875290,1757605851216,-400.0,0.00027397,7]
[384875291,1757605851225,-1883.59,0.00027397,7]
[384875292,1757605851237,-400.0,0.00027397,7]
[384875293,1757605851246,-2707.63,0.00027397,7]
[384875294,1757605851255,-400.0,0.00027397,7]
[384875295,1757605851264,-1638.57,0.00027397,7]
[384875296,1757605851274,-400.0,0.00027397,7]
[384875297,1757605851283,-2761.45,0.00027397,7]
[384875298,1757605851293,-1334.08,0.00027397,7]
[384875299,1757605851302,-400.0,0.00027397,7]
[384875300,1757605851311,-848.64,0.00027397,7]
[384875301,1757605851320,-857.14,0.00027397,7]
[384875302,1757605851330,-1446.61,0.00027397,7]
[384875303,1757605851339,-2220.06,0.00027397,7]
[384875304,1757605851348,-400.0,0.00027397,7]
[384875305,1757605851357,-400.0,0.00027397,7]
[384875306,1757605851366,-400.0,0.00027397,7]
[384875307,1757605851376,-403.50566288,0.00027397,7]
[384875308,1757605851387,-400.0,0.00027397,7]
[384875309,1757605851396,-400.0,0.00027397,7]
[384875310,1757605851405,-2370.39,0.00027397,7]
[384875311,1757605851415,-400.0,0.00027397,7]
[384875312,1757605851424,-400.0,0.00027397,7]
[384875313,1757605851434,-747.05,0.00027397,7]
[384875314,1757605851443,-2058.13,0.00027397,7]
[384875315,1757605851451,-207.85269847,0.00027397,7]
[384875316,1757605851461,-400.0,0.00027397,7]
[384875317,1757605851470,-400.0,0.00027397,7]
[384875318,1757605851479,-400.0,0.00027397,7]
[384875319,1757605851497,-420.07,0.00027397,7]
[384875320,1757605851507,-2498.17,0.00027397,7]
[384875321,1757605851516,-547.37,0.00027397,7]
[384875322,1757605851525,-1670.36,0.00027397,7]
[384875323,1757605851534,-400.0,0.00027397,7]
[384875324,1757605851543,-2841.4,0.00027397,7]
[384875325,1757605851552,-400.0,0.00027397,7]
[384875326,1757605851561,-400.0,0.00027397,7]
[384875327,1757605851570,-400.0,0.00027397,7]
[384875328,1757605851580,-400.0,0.00027397,7]
[384875329,1757605851589,-1992.02,0.00027397,7]
[384875330,1757605851598,-400.0,0.00027397,7]
[384875331,1757605851608,-400.0,0.00027397,7]
[384875332,1757605851617,-400.0,0.00027397,7]
[384875333,1757605851626,-576.77,0.00027397,7]
[384875334,1757605851635,-2760.58,0.00027397,7]
[384875335,1757605851644,-458.95,0.00027397,7]
[384875336,1757605851653,-400.0,0.00027397,7]
[384875337,1757605851663,-400.0,0.00027397,7]
[384875338,1757605851672,-576.77,0.00027397,7]
[384875339,1757605851682,-576.77,0.00027397,7]
[384875340,1757605851691,-576.77,0.00027397,7]
[384875341,1757605851700,-400.0,0.00027397,7]
[384875342,1757605851712,-576.77,0.00027397,7]
[384875343,1757605851721,-471.79117681,0.00027397,7]
[384875344,1757605851730,-576.77,0.00027397,7]
[384875345,1757605851739,-576.77,0.00027397,7]
[384875346,1757605851749,-400.0,0.00027397,7]
[384875347,1757605851758,-576.77,0.00027397,7]
[384875348,1757605851767,-576.77,0.00027397,7]
[384875349,1757605851776,-576.77,0.00027397,7]
[384875350,1757605851787,-400.0,0.00027397,7]
[384875351,1757605851797,-400.0,0.00027397,7]
[384875352,1757605851806,-400.0,0.00027397,2]
[384875353,1757605851816,-400.0,0.00027397,7]
[384875354,1757605851825,-400.0,0.00027397,7]
[384875355,1757605851835,-3218.15,0.00027397,7]
[384875356,1757605851843,-650.57,0.00027397,7]
[384875357,1757605851852,-403.30976217,0.00027397,7]
[384875358,1757605851862,-404.1332731,0.00027397,7]
[384875359,1757605851871,-786.02,0.00027397,7]
[384875360,1757605851880,-400.0,0.00027397,7]
[384875361,1757605851889,-577.44,0.00027397,7]
[384875362,1757605851898,-1262.95,0.00027397,7]
[384875363,1757605851908,-400.0,0.00027397,7]
[384875364,1757605851918,-512.92544538,0.00027397,7]
[384875365,1757605851927,-400.0,0.00027397,7]
[384875366,1757605851936,-403.29563029,0.00027397,7]
[384875367,1757605851946,-3268.04,0.00027397,7]
[384875368,1757605851955,-400.0,0.00027397,7]
[384875369,1757605851965,-2298.69,0.00027397,7]
[384875370,1757605852236,-367.59148565,0.00027397,7]
[384875371,1757605852246,-400.0,0.00027397,7]
[384875372,1757605852255,-400.0,0.00027397,7]
[384875373,1757605852266,-400.0,0.00027397,7]
[384875374,1757605852276,-2147.54,0.00027397,7]
[384875375,1757605852284,-718.07,0.00027397,7]
[384875376,1757605852294,-964.1,0.00027397,7]
[384875377,1757605852304,-400.0,0.00027397,7]
[384875378,1757605852313,-400.0,0.00027397,7]
[384875379,1757605852322,-400.0,0.00027397,7]
[384875380,1757605852331,-1062.86,0.00027397,7]
[384875381,1757605852340,-400.0,0.00027397,7]
[384875382,1757605852350,-400.0,0.00027397,7]
[384875383,1757605852359,-400.0,0.00027397,7]
[384875384,1757605852369,-2038.66,0.00027397,7]
[384875385,1757605852380,-400.0,0.00027397,7]
[384875386,1757605852390,-400.0,0.00027397,7]
[384875387,1757605852399,-500.0,0.00027397,7]
[384875388,1757605852407,-1840.87,0.00027397,7]
[384875389,1757605852416,-2423.74,0.00027397,7]
[384875390,1757605852426,-400.0,0.00027397,7]
[384875391,1757605852435,-2042.48,0.00027397,7]
[384875392,1757605852444,-400.0,0.00027397,7]
[384875393,1757605852454,-1731.23,0.00027397,7]
[384875394,1757605852463,-400.0,0.00027397,7]
[384875395,1757605852473,-2541.5,0.00027397,7]
[384875396,1757605852483,-647.65,0.00027397,7]
[384875397,1757605852492,-400.0,0.00027397,7]
[384875398,1757605852501,-400.0,0.00027397,7]
[384875399,1757605852510,-3147.81,0.00027397,7]
[384875400,1757605852519,-400.0,0.00027397,7]
[384875401,1757605852530,-400.0,0.00027397,7]
[384875402,1757605852539,-400.0,0.00027397,7]
[384875403,1757605852549,-1749.48,0.00027397,7]
[384875404,1757605852559,-600.08,0.00027397,7]
[384875405,1757605852568,-1820.68,0.00027397,7]
[384875406,1757605852578,-684.05,0.00027397,7]
[384875407,1757605852587,-2866.75,0.00027397,7]
[384875408,1757605852596,-2110.74,0.00027397,7]
[384875409,1757605852605,-400.0,0.00027397,7]
[384875410,1757605852615,-435.34,0.00027397,7]
[384875411,1757605852624,-400.0,0.00027397,7]
[384875412,1757605852633,-500.0,0.00027397,7]
[384875413,1757605852643,-500.0,0.00027397,7]
[384875414,1757605852652,-400.0,0.00027397,7]
[384875415,1757605852661,-500.0,0.00027397,7]
[384875416,1757605852670,-500.0,0.00027397,7]
[384875417,1757605852680,-500.0,0.00027397,7]
[384875418,1757605852690,-400.0,0.00027397,7]
[384875419,1757605852699,-4606.37,0.00027397,5]
[384875420,1757605852709,-781.5,0.00027397,7]
[384875421,1757605852721,-500.0,0.00027397,7]
[384875422,1757605852731,-400.0,0.00027397,7]
[384875423,1757605852740,-500.0,0.00027397,7]
[384875424,1757605852750,-500.0,0.00027397,7]
[384875425,1757605852759,-500.0,0.00027397,7]
[384875426,1757605852769,-352.11461451,0.00027397,7]
[384875427,1757605852780,-400.0,0.00027397,7]
[384875428,1757605852791,-838.54,0.00027397,7]
[384875429,1757605852801,-3119.52,0.00027397,7]
[384875430,1757605852810,-400.0,0.00027397,7]
[384875431,1757605852819,-400.0,0.00027397,7]
[384875432,1757605852830,-400.0,0.00027397,7]
[384875433,1757605852839,-400.0,0.00027397,7]
[384875434,1757605852850,-727.85,0.00027397,7]
[384875435,1757605852859,-400.0,0.00027397,7]
[384875436,1757605852869,-400.0,0.00027397,7]
[384875437,1757605852879,-400.0,0.00027397,7]
[384875438,1757605852889,-500.0,0.00027397,7]
[384875439,1757605852898,-400.0,0.00027397,7]
[384875440,1757605852908,-500.0,0.00027397,7]
[384875441,1757605852917,-568.31,0.00027397,7]
[384875442,1757605852927,-500.0,0.00027397,7]
[384875443,1757605852936,-500.0,0.00027397,7]
[384875444,1757605852947,-500.0,0.00027397,7]
[384875445,1757605852957,-500.0,0.00027397,7]
[384875446,1757605852967,-500.0,0.00027397,7]
[384875447,1757605852976,-500.0,0.00027397,7]
[384875448,1757605852987,-338.20109191,0.00027397,7]
[384875449,1757605852997,-400.0,0.00027397,7]
[384875450,1757605853006,-400.0,0.00027397,7]
[384875451,1757605853015,-400.0,0.00027397,7]
[384875452,1757605853024,-400.0,0.00027397,7]
[384875453,1757605853033,-1442.38,0.00027397,7]
[384875454,1757605853043,-2012.99,0.00027397,7]
[384875455,1757605853052,-400.0,0.00027397,7]
[384875456,1757605853062,-400.0,0.00027397,7]
[384875457,1757605853071,-151.0,0.00027397,7]
[384875458,1757605853080,-151.0,0.00027397,7]
[384875459,1757605853090,-925.3,0.00027397,7]
[384875460,1757605853099,-151.0,0.00027397,7]
[384875461,1757605853109,-596.84,0.00027397,7]
[384875462,1757605853119,-151.0,0.00027397,7]
[384875463,1757605853129,-1368.71,0.00027397,7]
[384875464,1757605853139,-400.0,0.00027397,7]
[384875465,1757605853148,-151.0,0.00027397,7]
[384875466,1757605853159,-400.0,0.00027397,7]
[384875467,1757605853168,-400.0,0.00027397,7]
[384875468,1757605853177,-151.0,0.00027397,7]
[384875469,1757605853186,-2295.72,0.00027397,7]
[384875470,1757605853195,-156.28952,0.00027397,7]
[384875471,1757605853204,-890.39,0.00027397,7]
[384875472,1757605853214,-668.91,0.00027397,7]
[384875473,1757605853223,-956.56,0.00027397,7]
[384875474,1757605853232,-400.0,0.00027397,7]
[384875475,1757605853241,-400.0,0.00027397,7]
[384875476,1757605853251,-400.0,0.00027397,7]
[384875477,1757605853260,-410.22713307,0.00027397,7]
[384875478,1757605853269,-1713.79,0.00027397,7]
[384875479,1757605853279,-400.0,0.00027397,7]
[384875480,1757605853288,-400.0,0.00027397,7]
[384875481,1757605853297,-677.84,0.00027397,7]
[384875482,1757605853306,-400.0,0.00027397,7]
[384875483,1757605853315,-554.86,0.00027397,7]
[384875484,1757605853324,-400.0,0.00027397,7]
[384875485,1757605853333,-771.2,0.00027397,7]
[384875486,1757605853343,-400.0,0.00027397,7]
[384875487,1757605853352,-400.0,0.00027397,7]
[384875488,1757605853362,-527.05,0.00027397,7]
[384875489,1757605853371,-909.79,0.00027397,7]
[384875490,1757605853381,-400.0,0.00027397,7]
[384875491,1757605853391,-400.0,0.00027397,7]
[384875492,1757605853400,-400.0,0.00027397,7]
[384875493,1757605853410,-401.87073333,0.00027397,7]
[384875494,1757605853419,-2473.32,0.00027397,7]
[384875495,1757605853428,-400.0,0.00027397,7]
[384875496,1757605853438,-400.0,0.00027397,7]
[384875497,1757605853447,-2262.96,0.00027397,7]
[384875498,1757605853457,-400.0,0.00027397,7]
[384875499,1757605853466,-400.0,0.00027397,7]
[384875500,1757605853476,-400.0,0.00027397,7]
[384875501,1757605853486,-400.0,0.00027397,7]
[384875502,1757605853495,-400.0,0.00027397,7]
[384875503,1757605853505,-400.0,0.00027397,7]
[384875504,1757605853517,-400.0,0.00027397,7]
[384875505,1757605853527,-1366.05,0.00027397,7]
[384875506,1757605853537,-400.0,0.00027397,7]
[384875507,1757605853547,-443.11,0.00027397,7]
[384875508,1757605853556,-400.0,0.00027397,7]
[384875509,1757605853565,-400.0,0.00027397,7]
[384875510,1757605853575,-904.14,0.00027397,7]
[384875511,1757605853585,-2171.89,0.00027397,7]
[384875512,1757605853594,-400.0,0.00027397,7]
[384875513,1757605853604,-1927.18,0.00027397,7]
[384875514,1757605853613,-500.0,0.00027397,7]
[384875515,1757605853623,-400.0,0.00027397,7]
[384875516,1757605853634,-400.0,0.00027397,7]
[384875517,1757605853643,-400.0,0.00027397,7]
[384875518,1757605853652,-400.0,0.00027397,7]
[384875519,1757605853662,-571.22,0.00027397,7]
[384875520,1757605853672,-400.0,0.00027397,7]
[384875521,1757605853682,-571.31,0.00027397,7]
[384875522,1757605853692,-400.0,0.00027397,7]
[384875523,1757605853701,-1000.0,0.00027397,7]
[384875524,1757605853716,-797.64,0.00027397,7]
[384875525,1757605853725,-400.0,0.00027397,7]
[384875526,1757605853734,-2037.08,0.00027397,7]
[384875527,1757605853744,-400.0,0.00027397,7]
[384875528,1757605853755,-400.0,0.00027397,7]
[384875529,1757605853764,-400.0,0.00027397,7]
[384875530,1757605853775,-400.0,0.00027397,7]
[384875531,1757605853784,-400.0,0.00027397,7]
[384875532,1757605853794,-400.0,0.00027397,7]
[384875533,1757605853803,-400.0,0.00027397,7]
[384875534,1757605853813,-821.68,0.00027397,7]
[384875535,1757605853822,-400.0,0.00027397,7]
[384875536,1757605853831,-2047.96,0.00027397,7]
[384875537,1757605853840,-520.26,0.00027397,7]
[384875538,1757605853850,-2401.34,0.00027397,7]
[384875539,1757605853859,-1152.99,0.00027397,7]
[384875540,1757605853870,-400.0,0.00027397,7]
[384875541,1757605853880,-2653.54,0.00027397,7]
[384875542,1757605853890,-400.0,0.00027397,7]
[384875543,1757605853902,-400.0,0.00027397,7]
[384875544,1757605853911,-498.60213686,0.00027397,7]
[384875545,1757605853920,-8125.74,0.00027397,7]
[384875546,1757605853929,-814.31,0.00027397,7]
[384875547,1757605853938,-581.06,0.00027397,7]
[384875548,1757605853947,-400.0,0.00027397,7]
[384875549,1757605853956,-400.0,0.00027397,7]
[384875550,1757605853965,-400.0,0.00027397,7]
[384875551,1757605853976,-400.0,0.00027397,7]
[384875552,1757605853986,-400.0,0.00027397,7]
[384875553,1757605853996,-953.43,0.00027397,7]
[384875554,1757605854005,-400.0,0.00027397,7]
[384875555,1757605854014,-1000.67,0.00027397,7]
[384875556,1757605854024,-1923.95,0.00027397,7]
[384875557,1757605854034,-1737.65,0.00027397,7]
[384875558,1757605854044,-400.0,0.00027397,7]
[384875559,1757605854053,-671.82,0.00027397,7]
[384875560,1757605854062,-2200.19,0.00027397,7]
[384875561,1757605854072,-1838.69,0.00027397,7]
[384875562,1757605854081,-400.0,0.00027397,7]
[384875563,1757605854092,-400.0,0.00027397,7]
[384875564,1757605854101,-2051.05,0.00027397,7]
[384875565,1757605854110,-846.36,0.00027397,7]
[384875566,1757605854120,-400.0,0.00027397,7]
[384875567,1757605854130,-844.47,0.00027397,7]
[384875568,1757605854139,-404.3270171,0.00027397,7]
[384875569,1757605854148,-400.0,0.00027397,7]
[384875570,1757605854158,-2787.53,0.00027397,7]
[384875571,1757605854168,-1749.42,0.00027397,7]
[384875572,1757605854177,-400.0,0.00027397,7]
[384875573,1757605854187,-1144.54,0.00027397,7]
[384875574,1757605854196,-477.36,0.00027397,7]
[384875575,1757605854206,-400.0,0.00027397,7]
[384875576,1757605854215,-1566.53,0.00027397,7]
[384875577,1757605854224,-2142.33,0.00027397,7]
[384875578,1757605854233,-802.01,0.00027397,7]
[384875579,1757605854242,-400.0,0.00027397,7]
[384875580,1757605854251,-3386.74,0.00027397,7]
[384875581,1757605854261,-400.0,0.00027397,7]
[384875582,1757605854270,-400.0,0.00027397,7]
[384875583,1757605854279,-400.0,0.00027397,7]
[384875584,1757605854288,-400.0,0.00027397,7]
[384875585,1757605854297,-400.0,0.00027397,7]
[384875586,1757605854306,-1664.68,0.00027397,7]
[384875587,1757605854315,-2266.87,0.00027397,7]
[384875588,1757605854324,-2777.2,0.00027397,7]
[384875589,1757605854334,-236.12155002,0.00027397,7]
[384875590,1757605854343,-400.0,0.00027397,7]
[384875591,1757605854353,-400.0,0.00027397,7]
[384875592,1757605854362,-400.0,0.00027397,7]
[384875593,1757605854371,-2450.38,0.00027397,7]
[384875594,1757605854380,-400.0,0.00027397,7]
[384875595,1757605854390,-400.0,0.00027397,7]
[384875596,1757605854399,-400.0,0.00027397,7]
[384875597,1757605854408,-400.0,0.00027397,7]
[384875598,1757605854417,-836.98,0.00027397,7]
[384875599,1757605854426,-879.22,0.00027397,7]
[384875600,1757605854436,-754.34,0.00027397,7]
[384875601,1757605854445,-400.0,0.00027397,7]
[384875602,1757605854454,-400.0,0.00027397,7]
[384875603,1757605854463,-509.212854,0.00027397,7]
[384875604,1757605854473,-400.0,0.00027397,7]
[384875605,1757605854482,-2089.74,0.00027397,7]
[384875606,1757605854491,-400.0,0.00027397,7]
[384875607,1757605854501,-1310.71,0.00027397,7]
[384875608,1757605854510,-400.0,0.00027397,7]
[384875609,1757605854519,-582.49,0.00027397,7]
[384875610,1757605854528,-400.0,0.00027397,7]
[384875611,1757605854537,-400.0,0.00027397,7]
[384875612,1757605854546,-400.0,0.00027397,7]
[384875613,1757605854556,-2561.87,0.00027397,7]
[384875614,1757605854566,-223.283184,0.00027397,7]
[384875615,1757605854576,-223.283184,0.00027397,7]
[384875616,1757605854585,-402.84991792,0.00027397,7]
[384875617,1757605854595,-223.283184,0.00027397,7]
[384875618,1757605854604,-223.283194,0.00027397,7]
[384875619,1757605854614,-1248.1,0.00027397,7]
[384875620,1757605854623,-598.73,0.00027397,7]
[384875621,1757605854632,-1253.1,0.00027397,7]
[384875622,1757605854641,-1754.93,0.00027397,7]
[384875623,1757605854650,-400.0,0.00027397,7]
[384875624,1757605854659,-400.0,0.00027397,7]
[384875625,1757605854669,-169.43844636,0.00027397,7]
[384875626,1757605854679,-400.0,0.00027397,7]
[384875627,1757605854688,-400.0,0.00027397,7]
[384875628,1757605854698,-400.0,0.00027397,7]
[384875629,1757605854707,-1277.9,0.00027397,7]
[384875630,1757605854719,-2115.26,0.00027397,7]
[384875631,1757605854727,-400.0,0.00027397,7]
[384875632,1757605854736,-2550.44,0.00027397,7]
[384875633,1757605854746,-1972.28,0.00027397,7]
[384875634,1757605854755,-1791.19,0.00027397,7]
[384875635,1757605854765,-550.04,0.00027397,7]
[384875636,1757605854775,-400.0,0.00027397,7]
[384875637,1757605854784,-400.0,0.00027397,7]
[384875638,1757605854793,-400.0,0.00027397,7]
[384875639,1757605854802,-400.0,0.00027397,7]
[384875640,1757605854811,-400.0,0.00027397,7]
[384875641,1757605854821,-264.509584,0.00027397,7]
[384875642,1757605854830,-1293.81,0.00027397,7]
[384875643,1757605854839,-1681.24,0.00027397,7]
[384875644,1757605854849,-406.51,0.00027397,7]
[384875645,1757605854858,-1362.74,0.00027397,7]
[384875646,1757605854867,-400.0,0.00027397,7]
[384875647,1757605854878,-400.0,0.00027397,7]
[384875648,1757605854887,-2730.57,0.00027397,7]
[384875649,1757605854897,-1812.16,0.00027397,7]
[384875650,1757605854907,-1358.49,0.00027397,7]
[384875651,1757605854917,-400.0,0.00027397,7]
[384875652,1757605854927,-400.0,0.00027397,7]
[384875653,1757605854936,-400.0,0.00027397,7]
[384875654,1757605854945,-2575.2,0.00027397,7]
[384875655,1757605854955,-1973.0,0.00027397,7]
[384875656,1757605854964,-400.0,0.00027397,7]
[384875657,1757605854973,-400.0,0.00027397,7]
[384875658,1757605854983,-1004.22,0.00027397,7]
[384875659,1757605854992,-400.0,0.00027397,7]
[384875660,1757605855001,-578.15,0.00027397,7]
[384875661,1757605855011,-400.0,0.00027397,7]
[384875662,1757605855020,-400.0,0.00027397,7]
[384875663,1757605855030,-407.8315591,0.00027397,7]
[384875664,1757605855039,-400.0,0.00027397,7]
[384875665,1757605855048,-400.0,0.00027397,7]
[384875666,1757605855058,-400.0,0.00027397,7]
[384875667,1757605855067,-1003.95,0.00027397,7]
[384875668,1757605855076,-400.0,0.00027397,7]
[384875669,1757605855086,-400.0,0.00027397,7]
[384875670,1757605855096,-706.19,0.00027397,7]
[384875671,1757605855105,-899.86,0.00027397,7]
[384875672,1757605855115,-2286.65,0.00027397,7]
[384875673,1757605855124,-1433.01,0.00027397,7]
[384875674,1757605855133,-3173.6,0.00027397,7]
[384875675,1757605855142,-1951.98,0.00027397,7]
[384875676,1757605855152,-403.09581116,0.00027397,7]
[384875677,1757605855161,-400.0,0.00027397,7]
[384875678,1757605855170,-400.0,0.00027397,7]
[384875679,1757605855180,-1782.54,0.00027397,7]
[384875680,1757605855191,-400.0,0.00027397,7]
[384875681,1757605855200,-1806.29,0.00027397,7]
[384875682,1757605855209,-400.0,0.00027397,7]
[384875683,1757605855218,-412.09019687,0.00027397,7]
[384875684,1757605855227,-575.16,0.00027397,7]
[384875685,1757605855237,-400.0,0.00027397,7]
[384875686,1757605855246,-400.0,0.00027397,7]
[384875687,1757605855256,-400.0,0.00027397,7]
[384875688,1757605855265,-400.0,0.00027397,7]
[384875689,1757605855274,-2199.85,0.00027397,7]
[384875690,1757605855284,-400.0,0.00027397,7]
[384875691,1757605855293,-400.0,0.00027397,7]
[384875692,1757605855303,-279.4237,0.00027397,7]
[384875693,1757605855312,-1097.11,0.00027397,7]
[384875694,1757605855321,-400.0,0.00027397,7]
[384875695,1757605855331,-400.0,0.00027397,7]
[384875696,1757605855341,-2396.92,0.00027397,7]
[384875697,1757605855350,-2387.68,0.00027397,7]
[384875698,1757605855361,-400.0,0.00027397,7]
[384875699,1757605855371,-1426.86,0.00027397,7]
[384875700,1757605855381,-2819.44,0.00027397,7]
[384875701,1757605855576,-2529.07,0.00027397,7]
[384875702,1757605855607,-400.0,0.00027397,7]
[384875703,1757605855617,-400.0,0.00027397,7]
[384875704,1757605855627,-2384.1,0.00027397,7]
[384875705,1757605855636,-1748.79,0.00027397,7]
[384875706,1757605855645,-400.0,0.00027397,7]
[384875707,1757605855654,-400.0,0.00027397,7]
[384875708,1757605855663,-400.0,0.00027397,7]
[384875709,1757605855672,-616.39,0.00027397,7]
[384875710,1757605855683,-400.0,0.00027397,7]
[384875711,1757605855692,-2128.66,0.00027397,7]
[384875712,1757605855701,-1737.46,0.00027397,7]
[384875713,1757605855712,-400.0,0.00027397,7]
[384875714,1757605855721,-2556.63,0.00027397,7]
[384875715,1757605855730,-400.0,0.00027397,7]
[384875716,1757605855739,-1984.19,0.00027397,7]
[384875717,1757605855749,-400.0,0.00027397,7]
[384875718,1757605855758,-2161.38,0.00027397,7]
[384875719,1757605855768,-1740.48,0.00027397,7]
[384875720,1757605855777,-2086.05,0.00027397,7]
[384875721,1757605855787,-1971.66,0.00027397,7]
[384875722,1757605855796,-400.0,0.00027397,7]
[384875723,1757605855806,-2397.17,0.00027397,7]
[384875724,1757605855815,-400.0,0.00027397,7]
[384875725,1757605855824,-400.0,0.00027397,7]
[384875726,1757605855833,-400.0,0.00027397,7]
[384875727,1757605855843,-682.11,0.00027397,7]
[384875728,1757605855852,-1131.26,0.00027397,7]
[384875729,1757605855861,-400.0,0.00027397,7]
[384875730,1757605855871,-400.0,0.00027397,7]
[384875731,1757605855881,-400.0,0.00027397,7]
[384875732,1757605855890,-404.71360838,0.00027397,7]
[384875733,1757605855899,-400.0,0.00027397,7]
[384875734,1757605855908,-400.0,0.00027397,7]
[384875735,1757605855917,-900.36,0.00027397,7]
[384875736,1757605855926,-680.38,0.00027397,7]
[384875737,1757605855935,-588.82,0.00027397,7]
[384875738,1757605855945,-2246.58,0.00027397,7]
[384875739,1757605855954,-400.0,0.00027397,7]
[384875740,1757605855965,-400.0,0.00027397,7]
[384875741,1757605855975,-436.73,0.00027397,7]
[384875742,1757605855984,-1048.09,0.00027397,7]
[384875743,1757605855993,-400.0,0.00027397,7]
[384875744,1757605856002,-402.03122071,0.00027397,7]
[384875745,1757605856012,-2184.81,0.00027397,7]
[384875746,1757605856021,-400.0,0.00027397,7]
[384875747,1757605856030,-400.0,0.00027397,7]
[384875748,1757605856040,-1222.45,0.00027397,7]
[384875749,1757605856049,-400.0,0.00027397,7]
[384875750,1757605856059,-400.0,0.00027397,7]
[384875751,1757605856068,-892.55,0.00027397,7]
[384875752,1757605856078,-400.0,0.00027397,7]
[384875753,1757605856087,-400.0,0.00027397,7]
[384875754,1757605856096,-535.41,0.00027397,7]
[384875755,1757605856106,-1801.77,0.00027397,7]
[384875756,1757605856115,-400.0,0.00027397,7]
[384875757,1757605856125,-400.0,0.00027397,7]
[384875758,1757605856135,-400.0,0.00027397,7]
[384875759,1757605856144,-789.34,0.00027397,7]
[384875760,1757605856153,-400.0,0.00027397,7]
[384875761,1757605856162,-2434.04,0.00027397,7]
[384875762,1757605856171,-400.0,0.00027397,7]
[384875763,1757605856181,-400.0,0.00027397,7]
[384875764,1757605856190,-400.0,0.00027397,7]